fUSD/lending_fUSD_20250110
["ID","MTS","AMOUNT","RATE_DAILY","PERIOD"]
[348383395,1736491832917,-500.0,9.997e-05,2]
[348383396,1736491832927,-421.62358155,9.997e-05,2]
[348383397,1736491832936,-500.0,9.997e-05,2]
[348383398,1736491832944,-500.0,9.997e-05,2]
[348383399,1736491832953,-500.0,9.997e-05,2]
[348383400,1736491832963,-500.0,9.997e-05,2]
[348383401,1736491832972,-500.0,9.997e-05,2]
[348383402,1736491832981,-500.0,9.997e-05,2]
[348383403,1736491832990,-555.72618495,9.997e-05,2]
[348383404,1736491832999,-500.0,9.997e-05,2]
[348383405,1736491833008,-500.0,9.997e-05,2]
[348383406,1736491833017,-165.16234324,9.997e-05,2]
[348383407,1736491833027,-548.76,9.997e-05,2]
[348383408,1736491833036,-500.0,9.997e-05,2]
[348383409,1736491833046,-500.0,9.997e-05,2]
[348383410,1736491833055,-500.0,9.997e-05,2]
[348383411,1736491833064,-500.0,9.997e-05,2]
[348383412,1736491833074,-500.0,9.997e-05,2]
[348383413,1736491833084,-572.21133036,9.997e-05,2]
[348383414,1736491833094,-504.54,9.997e-05,2]
[348383415,1736491833103,-500.0,9.997e-05,2]
[348383416,1736491833115,-672.28,9.997e-05,2]
[348383417,1736491833124,-500.0,9.997e-05,2]
[348383418,1736491833134,-405.48504729,9.997e-05,2]
[348383419,1736491833144,-500.0,9.997e-05,2]
[348383420,1736491833153,-500.0,9.997e-05,2]
[348383421,1736491833163,-500.0,9.997e-05,2]
[348383422,1736491833172,-500.0,9.997e-05,2]
[348383423,1736491833182,-500.0,9.997e-05,2]
[348383424,1736491833191,-500.0,9.997e-05,2]
[348383425,1736491833201,-500.0,9.997e-05,2]
[348383426,1736491833210,-656.02,9.997e-05,2]
[348383427,1736491833219,-500.0,9.997e-05,2]
[348383428,1736491833228,-743.9,9.997e-05,2]
[348383429,1736491833237,-500.0,9.997e-05,2]
[348383430,1736491833246,-638.47,9.997e-05,2]
[348383431,1736491833256,-500.0,9.997e-05,2]
[348383432,1736491833265,-500.0,9.997e-05,2]
[348383433,1736491833274,-218.9754878,9.997e-05,2]
[348383434,1736491833283,-500.0,9.997e-05,2]
[348383435,1736491833294,-427.05780805,9.997e-05,2]
[348383436,1736491833421,-72.94219195,9.997e-05,2]
[348383437,1736491833431,-390.03779805,9.997e-05,2]
[348383438,1736491833535,-111.63712876,9.997e-05,2]
[348383439,1736491833546,-500.0,9.997e-05,2]
[348383440,1736491833556,-500.0,9.997e-05,2]
[348383441,1736491833566,-453.87887439,9.997e-05,2]
[348383445,1736491837462,-46.12112561,9.997e-05,2]
[348383446,1736491837472,-500.0,9.997e-05,2]
[348383447,1736491837481,-500.0,9.997e-05,2]
[348383448,1736491837491,-500.0,9.997e-05,2]
[348383449,1736491837500,-500.0,9.997e-05,2]
[348383450,1736491837509,-500.0,9.997e-05,2]
[348383451,1736491837518,-624.54,9.997e-05,2]
[348383452,1736491837527,-500.0,9.997e-05,2]
[348383453,1736491837537,-500.0,9.997e-05,2]
[348383454,1736491837547,-500.0,9.997e-05,2]
[348383455,1736491837556,-500.0,9.997e-05,2]
[348383456,1736491837565,-500.0,9.997e-05,2]
[348383457,1736491837574,-701.29,9.997e-05,2]
[348383458,1736491837583,-863.0,9.997e-05,2]
[348383459,1736491837592,-792.0,9.997e-05,2]
[348383460,1736491837602,-500.0,9.997e-05,2]
[348383461,1736491837611,-1539.43,9.997e-05,2]
[348383462,1736491837620,-500.0,9.997e-05,2]
[348383463,1736491837629,-710.28,9.997e-05,2]
[348383464,1736491837638,-2200.35,9.997e-05,2]
[348383465,1736491837648,-500.0,9.997e-05,2]
[348383466,1736491837657,-714.95,9.997e-05,2]
[348383467,1736491837666,-1025.81,9.997e-05,2]
[348383468,1736491837675,-1107.46,9.997e-05,2]
[348383469,1736491837683,-520.3,9.997e-05,2]
[348383470,1736491837692,-722.2,9.997e-05,2]
[348383471,1736491837701,-834.63,9.997e-05,2]
[348383472,1736491837710,-1770.48,9.997e-05,2]
[348383473,1736491837719,-500.0,9.997e-05,2]
[348383474,1736491837728,-500.0,9.997e-05,2]
[348383475,1736491837737,-500.0,9.997e-05,2]
[348383476,1736491837746,-717.43,9.997e-05,2]
[348383477,1736491837754,-882.32,9.997e-05,2]
[348383478,1736491837764,-1124.38,9.997e-05,2]
[348383479,1736491837773,-500.0,9.997e-05,2]
[348383480,1736491837781,-557.91,9.997e-05,2]
[348383481,1736491837790,-1225.02,9.997e-05,2]
[348383482,1736491837800,-850.15,9.997e-05,2]
[348383483,1736491837809,-773.23,9.997e-05,2]
[348383484,1736491837818,-500.0,9.997e-05,2]
[348383486,1736491837827,-739.52,9.997e-05,2]
[348383488,1736491837837,-2072.81,9.997e-05,2]
[348383490,1736491837846,-983.86,9.997e-05,2]
[348383492,1736491837855,-1096.96,9.997e-05,2]
[348383494,1736491837864,-986.15,9.997e-05,2]
[348383496,1736491837873,-500.0,9.997e-05,2]
[348383498,1736491837883,-500.0,9.997e-05,2]
[348383500,1736491837892,-500.0,9.997e-05,2]
[348383502,1736491837902,-1299.37,9.997e-05,2]
[348383504,1736491837912,-500.0,9.997e-05,2]
[348383506,1736491837921,-2420.32,9.998e-05,2]
[348383508,1736491837931,-946.62,9.998e-05,2]
[348383510,1736491837940,-853.32,9.998e-05,2]
[348383512,1736491837949,-1262.13,9.998e-05,2]
[348383514,1736491837959,-1287.65,9.998e-05,2]
[348383516,1736491837968,-500.0,9.998e-05,2]
[348383518,1736491837978,-505.00208755,9.998e-05,2]
[348383520,1736491837988,-500.0,9.998e-05,2]
[348383522,1736491837998,-633.94,9.998e-05,2]
[348383524,1736491838007,-508.33567904,9.998e-05,2]
[348383526,1736491838017,-500.0,9.998e-05,2]
[348383528,1736491838026,-804.48,9.998e-05,2]
[348383530,1736491838035,-730.1,9.998e-05,2]
[348383533,1736491838045,-1826.74,9.998e-05,2]
[348383535,1736491838054,-570.98,9.998e-05,2]
[348383538,1736491838064,-500.0,9.998e-05,2]
[348383540,1736491838073,-500.0,9.998e-05,2]
[348383543,1736491838082,-696.82,9.998e-05,2]
[348383546,1736491838092,-500.0,9.998e-05,2]
[348383548,1736491838101,-500.0,9.998e-05,2]
[348383551,1736491838115,-500.0,9.998e-05,2]
[348383554,1736491838124,-500.0,9.998e-05,2]
[348383556,1736491838133,-500.0,9.998e-05,2]
[348383559,1736491838142,-500.0,9.998e-05,2]
[348383562,1736491838152,-1122.23,9.998e-05,2]
[348383565,1736491838162,-600.03,9.998e-05,2]
[348383567,1736491838171,-629.55,9.998e-05,2]
[348383570,1736491838180,-622.79,9.998e-05,2]
[348383573,1736491838189,-500.0,9.998e-05,2]
[348383576,1736491838198,-500.0,9.998e-05,2]
[348383579,1736491838207,-500.0,9.998e-05,2]
[348383581,1736491838216,-149.87555522,9.998e-05,2]
[348383588,1736491838261,-350.12444478,9.998e-05,2]
[348383590,1736491838271,-500.0,9.998e-05,2]
[348383592,1736491838280,-665.44,9.998e-05,2]
[348383594,1736491838289,-3690.49,9.998e-05,2]
[348383596,1736491838298,-500.0,9.998e-05,2]
[348383598,1736491838307,-500.0,9.998e-05,2]
[348383600,1736491838316,-600.53,9.998e-05,2]
[348383602,1736491838325,-500.0,9.998e-05,2]
[348383604,1736491838334,-686.14,9.998e-05,2]
[348383606,1736491838343,-1653.53,9.998e-05,2]
[348383607,1736491838352,-500.0,9.998e-05,2]
[348383609,1736491838361,-500.0,9.998e-05,2]
[348383611,1736491838370,-547.4,9.998e-05,2]
[348383613,1736491838380,-672.34,9.998e-05,2]
[348383615,1736491838389,-500.0,9.998e-05,2]
[348383617,1736491838399,-664.84,9.998e-05,2]
[348383619,1736491838408,-886.47,9.998e-05,2]
[348383622,1736491838418,-2262.14,9.998e-05,2]
[348383624,1736491838427,-752.29,9.998e-05,2]
[348383626,1736491838436,-500.0,9.998e-05,2]
[348383628,1736491838446,-300.7102807,9.998e-05,2]
[348383629,1736491838455,-629.9,9.998e-05,2]
[348383631,1736491838464,-574.39,9.998e-05,2]
[348383633,1736491838473,-802.58,9.998e-05,2]
[348383634,1736491838482,-500.0,9.998e-05,2]
[348383636,1736491838491,-656.8,9.998e-05,2]
[348383638,1736491838501,-1280.66,9.998e-05,2]
[348383640,1736491838510,-728.05,9.998e-05,2]
[348383642,1736491838519,-500.0,9.998e-05,2]
[348383643,1736491838527,-616.32,9.998e-05,2]
[348383645,1736491838536,-500.0,9.998e-05,2]
[348383647,1736491838546,-500.0,9.998e-05,2]
[348383649,1736491838555,-1075.04,9.998e-05,2]
[348383651,1736491838564,-155.20554145,9.998e-05,2]
[348383653,1736491838574,-500.0,9.998e-05,2]
[348383655,1736491838583,-503.64590921,9.998e-05,2]
[348383657,1736491838592,-1599.66,9.998e-05,2]
[348383659,1736491838602,-500.0,9.998e-05,2]
[348383660,1736491838611,-500.0,9.998e-05,2]
[348383661,1736491838620,-503.033464,9.998e-05,2]
[348383662,1736491838630,-500.0,9.998e-05,2]
[348383663,1736491838639,-500.0,9.998e-05,2]
[348383664,1736491838648,-500.0,9.998e-05,2]
[348383665,1736491838657,-500.0,9.998e-05,2]
[348383666,1736491838667,-518.58,9.998e-05,2]
[348383667,1736491838676,-500.0,9.998e-05,2]
[348383668,1736491838685,-500.0,9.998e-05,2]
[348383670,1736491838694,-544.19,9.998e-05,2]
[348383672,1736491838703,-500.0,9.998e-05,2]
[348383674,1736491838712,-662.39,9.998e-05,2]
[348383676,1736491838722,-500.0,9.998e-05,2]
[348383678,1736491838731,-1737.08,9.998e-05,2]
[348383680,1736491838740,-500.0,9.998e-05,2]
[348383682,1736491838749,-500.0,9.998e-05,2]
[348383684,1736491838758,-502.56756165,9.998e-05,2]
[348383686,1736491838767,-500.0,9.998e-05,2]
[348383688,1736491838776,-500.0,9.998e-05,2]
[348383690,1736491838785,-500.0,9.998e-05,2]
[348383692,1736491838796,-500.0,9.998e-05,2]
[348383694,1736491838805,-500.0,9.998e-05,2]
[348383696,1736491838814,-500.0,9.998e-05,2]
[348383698,1736491838824,-965.55,9.998e-05,2]
[348383700,1736491838832,-500.0,9.998e-05,2]
[348383702,1736491838842,-500.0,9.998e-05,2]
[348383704,1736491838851,-500.0,9.998e-05,2]
[348383706,1736491838860,-500.0,9.998e-05,2]
[348383708,1736491838869,-500.0,9.998e-05,2]
[348383710,1736491838878,-596.01,9.998e-05,2]
[348383712,1736491838887,-500.0,9.998e-05,2]
[348383714,1736491838896,-500.0,9.998e-05,2]
[348383716,1736491838906,-500.0,9.998e-05,2]
[348383718,1736491838915,-500.0,9.998e-05,2]
[348383719,1736491838924,-1241.34,9.998e-05,2]
[348383721,1736491838933,-500.0,9.998e-05,2]
[348383723,1736491838943,-503.72721293,9.998e-05,2]
[348383725,1736491838952,-500.0,9.998e-05,2]
[348383727,1736491838961,-500.0,9.998e-05,2]
[348383729,1736491838970,-1342.73,9.998e-05,2]
[348383731,1736491838979,-827.29,9.998e-05,2]
[348383733,1736491838988,-500.0,9.998e-05,2]
[348383735,1736491838997,-500.0,9.998e-05,2]
[348383737,1736491839006,-500.0,9.998e-05,2]
[348383739,1736491839014,-500.0,9.998e-05,2]
[348383741,1736491839024,-504.30975864,9.998e-05,2]
[348383743,1736491839032,-2635.08,9.998e-05,2]
[348383745,1736491839042,-6726.5,9.998e-05,2]
[348383747,1736491839051,-500.0,9.998e-05,2]
[348383749,1736491839060,-812.93,9.998e-05,2]
[348383751,1736491839070,-500.0,9.998e-05,2]
[348383754,1736491839080,-2529.15,9.998e-05,2]
[348383755,1736491839090,-500.0,9.998e-05,2]
[348383757,1736491839099,-500.0,9.998e-05,2]
[348383759,1736491839113,-547.37,9.998e-05,2]
[348383761,1736491839122,-710.18,9.998e-05,2]
[348383763,1736491839131,-500.0,9.998e-05,2]
[348383765,1736491839140,-838.68,9.998e-05,2]
[348383767,1736491839151,-502.07895928,9.998e-05,2]
[348383769,1736491839160,-712.57,9.998e-05,2]
[348383771,1736491839169,-500.0,9.998e-05,2]
[348383773,1736491839179,-431.009205,9.998e-05,2]
[348383775,1736491839188,-2516.21,9.998e-05,2]
[348383777,1736491839197,-500.0,9.998e-05,2]
[348383779,1736491839206,-500.0,9.998e-05,2]
[348383781,1736491839215,-1327.91,9.998e-05,2]
[348383783,1736491839224,-637.0,9.998e-05,2]
[348383785,1736491839233,-942.51,9.998e-05,2]
[348383787,1736491839242,-501.9398778,9.998e-05,2]
[348383789,1736491839251,-500.0,9.998e-05,2]
[348383791,1736491839260,-500.0,9.998e-05,2]
[348383793,1736491839269,-572.96,9.998e-05,2]
[348383795,1736491839278,-501.91280292,9.998e-05,2]
[348383798,1736491839287,-500.0,9.998e-05,2]
[348383800,1736491839296,-500.0,9.998e-05,2]
[348383802,1736491839306,-993.4,9.998e-05,2]
[348383804,1736491839315,-500.0,9.998e-05,2]
[348383806,1736491839325,-500.0,9.998e-05,2]
[348383808,1736491839334,-500.0,9.998e-05,2]
[348383810,1736491839343,-371.576661,9.998e-05,2]
[348383812,1736491839352,-1004.1,9.998e-05,2]
[348383814,1736491839361,-500.0,9.998e-05,2]
[348383816,1736491839370,-2731.85,9.998e-05,2]
[348383818,1736491839379,-1610.63,9.998e-05,2]
[348383820,1736491839389,-2220.65,9.998e-05,2]
[348383822,1736491839398,-830.92,9.998e-05,2]
[348383824,1736491839407,-603.5,9.998e-05,2]
[348383826,1736491839417,-500.0,9.998e-05,2]
[348383853,1736491839653,-500.0,9.998e-05,2]
[348383855,1736491839662,-2432.9,9.998e-05,2]
[348383857,1736491839672,-500.0,9.998e-05,2]
[348383859,1736491839682,-792.62,9.998e-05,2]
[348383861,1736491839691,-5693.57,9.998e-05,2]
[348383863,1736491839700,-630.27,9.998e-05,2]
[348383865,1736491839710,-955.49,9.998e-05,2]
[348383867,1736491839719,-788.22,9.998e-05,2]
[348383869,1736491839729,-819.81,9.998e-05,2]
[348383871,1736491839738,-500.0,9.998e-05,2]
[348383873,1736491839747,-766.14,9.998e-05,2]
[348383875,1736491839756,-500.0,9.998e-05,2]
[348383877,1736491839765,-500.0,9.998e-05,2]
[348383879,1736491839774,-544.84,9.998e-05,2]
[348383881,1736491839783,-550.41,9.998e-05,2]
[348383883,1736491839792,-1420.02,9.998e-05,2]
[348383885,1736491839802,-578.31,9.998e-05,2]
[348383886,1736491839812,-901.87,9.998e-05,2]
[348383887,1736491839821,-1198.31,9.998e-05,2]
[348383888,1736491839831,-500.0,9.998e-05,2]
[348383889,1736491839840,-589.94,9.998e-05,2]
[348383890,1736491839849,-1137.78,9.998e-05,2]
[348383891,1736491839859,-582.28,9.998e-05,2]
[348383892,1736491839868,-500.0,9.998e-05,2]
[348383893,1736491839877,-500.0,9.998e-05,2]
[348383894,1736491839887,-3708.51,9.998e-05,2]
[348383895,1736491839896,-500.0,9.998e-05,2]
[348383896,1736491839904,-948.48,9.998e-05,2]
[348383897,1736491839914,-516.01,9.998e-05,2]
[348383898,1736491839923,-500.0,9.998e-05,2]
[348383899,1736491839932,-825.75,9.998e-05,2]
[348383900,1736491839941,-500.0,9.998e-05,2]
[348383901,1736491839950,-500.0,9.998e-05,2]
[348383902,1736491839959,-680.32,9.998e-05,2]
[348383903,1736491839969,-500.0,9.998e-05,2]
[348383904,1736491839978,-500.0,9.998e-05,2]
[348383905,1736491839988,-500.0,9.998e-05,2]
[348383906,1736491839997,-500.0,9.998e-05,2]
[348383907,1736491840006,-500.0,9.998e-05,2]
[348383908,1736491840017,-500.0,9.998e-05,2]
[348383909,1736491840027,-878.05,9.998e-05,2]
[348383910,1736491840037,-500.0,9.998e-05,2]
[348383911,1736491840046,-500.0,9.998e-05,2]
[348383912,1736491840056,-584.59,9.998e-05,2]
[348383913,1736491840065,-2349.89,9.998e-05,2]
[348383914,1736491840075,-651.33,9.998e-05,2]
[348383915,1736491840084,-500.0,9.998e-05,2]
[348383916,1736491840093,-2916.47,9.998e-05,2]
[348383917,1736491840106,-500.0,9.998e-05,2]
[348383918,1736491840115,-500.0,9.999e-05,2]
[348383919,1736491840124,-526.82,9.999e-05,2]
[348383920,1736491840133,-482.62071834,9.999e-05,2]
[348383921,1736491840143,-758.18,9.999e-05,2]
[348383922,1736491840153,-2327.34,9.999e-05,2]
[348383923,1736491840163,-1080.88,9.999e-05,2]
[348383924,1736491840172,-500.0,9.999e-05,2]
[348383925,1736491840182,-887.45,9.999e-05,2]
[348383926,1736491840192,-1076.5,9.999e-05,2]
[348383927,1736491840201,-1223.27,9.999e-05,2]
[348383928,1736491840210,-1168.06,9.999e-05,2]
[348383929,1736491840220,-1001.0,9.999e-05,2]
[348383930,1736491840229,-971.61,9.999e-05,2]
[348383931,1736491840238,-1898.56,9.999e-05,2]
[348383932,1736491840248,-1096.81,9.999e-05,2]
[348383933,1736491840258,-1229.55,9.999e-05,2]
[348383934,1736491840267,-500.0,9.999e-05,2]
[348383935,1736491840276,-557.57,9.999e-05,2]
[348383936,1736491840286,-1256.42,9.999e-05,2]
[348383937,1736491840295,-1271.26,9.999e-05,2]
[348383938,1736491840306,-756.04,9.999e-05,2]
[348383939,1736491840315,-2219.31,9.999e-05,2]
[348383940,1736491840325,-2582.27,9.999e-05,2]
[348383941,1736491840335,-1000.0,9.999e-05,2]
[348383942,1736491840344,-748.48,9.999e-05,2]
[348383943,1736491840354,-878.07,9.999e-05,2]
[348383944,1736491840363,-1013.79,9.999e-05,2]
[348383945,1736491840373,-1623.87,9.999e-05,2]
[348383946,1736491840383,-500.0,9.999e-05,2]
[348383947,1736491840393,-205.59955707,9.999e-05,2]
[348383948,1736491840402,-1103.0,0.0001,2]
[348383949,1736491840412,-1463595.76141774,0.0001,2]
[348383950,1736491840421,-264.32021598,0.0001,2]
[348383951,1736491840430,-24212.0,0.0001,2]
[348383952,1736491840439,-1000.0,0.0001,2]
[348383953,1736491840449,-498809.59787003,0.0001,2]
[348383954,1736491840459,-331.57580513,0.0001,2]
[348383955,1736491840468,-4239.10284717,0.0001,2]
[348383956,1736491840478,-1673.97983634,0.0001,2]
[348383957,1736491840487,-111708.69921117,0.0001,2]
[348383958,1736491840496,-151.0,0.0001,2]
[348383959,1736491840506,-160.78282822,0.0001,2]
[348383960,1736491840515,-200.0,0.0001,2]
[348383961,1736491840525,-875.54161395,0.0001,2]
[348383962,1736491840534,-151.0,0.0001,2]
[348383963,1736491840543,-151.0,0.0001,2]
[348383964,1736491840552,-279.9,0.0001,2]
[348383965,1736491840562,-250.0,0.0001,2]
[348383966,1736491840571,-250.0,0.0001,2]
[348383967,1736491840581,-250.0,0.0001,2]
[348383968,1736491840590,-250.0,0.0001,2]
[348383969,1736491840600,-250.0,0.0001,2]
[348383970,1736491840609,-250.0,0.0001,2]
[348383971,1736491840618,-250.0,0.0001,2]
[348383972,1736491840628,-250.0,0.0001,2]
[348383973,1736491840637,-250.0,0.0001,2]
[348383974,1736491840647,-250.0,0.0001,2]
[348383975,1736491840658,-250.0,0.0001,2]
[348383976,1736491840669,-250.0,0.0001,2]
[348383977,1736491840679,-250.0,0.0001,2]
[348383978,1736491840688,-252.2,0.0001,2]
[348383979,1736491840697,-99114.58296432,0.0001,2]
[348383980,1736491840708,-1019323.59768901,0.0001,5]
[348383981,1736491840723,-5269.91097308,0.0001,5]
[348383982,1736491841083,-504.85881715,0.0001,5]
[348383983,1736491841111,-6594.82303768,0.0001,5]
[348383984,1736491841199,-1277.3376671,0.0001,5]
[348383985,1736491841210,-331.48252949,0.0001,5]
[348383986,1736491841258,-1207.86980334,0.0001,5]
[348383987,1736491841275,-418.54789703,0.0001,5]
[348383989,1736491842555,-500.0,9.998e-05,2]
[348383990,1736491842565,-77487.22539437,0.0001,5]
[348383991,1736491842589,-1068.64597801,0.0001,5]
[348383992,1736491842623,-501.05350463,0.0001,5]
[348383993,1736491842731,-3557.6108908,0.0001,5]
[348383994,1736491842744,-4049.1615056,0.0001,5]
[348383995,1736491842768,-2599.444995,0.0001,5]
[348383996,1736491842857,-3851.88067639,0.0001,5]
[348383997,1736491842868,-300.0,0.0001,5]
[348384005,1736491845575,-633.12,9.997e-05,2]
[348384006,1736491845585,-593.104995,9.997e-05,2]
[348384007,1736491845674,-177.855005,9.997e-05,2]
[348384008,1736491845685,-322.144995,0.0001,5]
[348384009,1736491845772,-351256.18530613,0.0001,5]
[348384010,1736491845795,-4698.1,0.0001,5]
[348384011,1736491845807,-6255.479037,0.0001,5]
[348384013,1736491846383,-15704.39999849,0.0001,5]
[348384015,1736492714694,1852.42,8.541e-05,2]
[348384019,1736492783254,227.7442351,7.895e-05,2]
[348384020,1736492812170,250.0,8.537e-05,2]
[348384046,1736493031862,-430.24377552,8.921e-05,2]
[348384047,1736493031979,-1199.134,8.921e-05,2]
[348384048,1736493031990,-291.90547006,8.921e-05,2]
[348384049,1736493032001,-248.29675442,8.921e-05,2]
[348384050,1736493032010,-207.73630972,8.973e-05,2]
[348384051,1736493032019,-17.96693586,8.973e-05,2]
[348384052,1736493032043,-337.79674432,8.973e-05,2]
[348384053,1736493032055,-130.36631982,8.973e-05,2]
[348384054,1736493032064,-150.0,9e-05,2]
[348384055,1736493032073,-228.87128237,9e-05,2]
[348384056,1736493032082,-253.41757428,9e-05,2]
[348384057,1736493032091,-150.16273031,9e-05,2]
[348384058,1736493032100,-222.37492103,9e-05,2]
[348384059,1736493032109,-250.0,9.011e-05,2]
[348384060,1736493032118,-150.0,9.015e-05,2]
[348384061,1736493032128,-150.0,9.029e-05,2]
[348384062,1736493032137,-178.0,9.034e-05,2]
[348384063,1736493032147,-150.0,9.044e-05,2]
[348384064,1736493032156,-1000.0,9.057e-05,2]
[348384065,1736493032165,-150.0,9.059e-05,2]
[348384066,1736493032174,-150.0,9.074e-05,2]
[348384067,1736493032183,-150.0,9.088e-05,2]
[348384068,1736493032192,-316.41,9.097e-05,2]
[348384069,1736493032201,-150.0,9.103e-05,2]
[348384070,1736493032210,-150.0,9.118e-05,2]
[348384071,1736493032219,-150.0,9.132e-05,2]
[348384073,1736493032228,-150.0,9.147e-05,2]
[348384075,1736493032237,-150.0,9.162e-05,2]
[348384077,1736493032247,-150.0,9.176e-05,2]
[348384079,1736493032255,-150.0,9.191e-05,2]
[348384081,1736493032265,-150.0,9.206e-05,2]
[348384083,1736493032274,-150.0,9.221e-05,2]
[348384085,1736493032283,-150.0,9.235e-05,2]
[348384086,1736493032293,-150.0,9.235e-05,2]
[348384089,1736493032302,-150.0,9.25e-05,2]
[348384091,1736493032311,-150.0,9.265e-05,2]
[348384093,1736493032320,-150.0,9.279e-05,2]
[348384095,1736493032329,-150.0,9.294e-05,2]
[348384096,1736493032339,-1100.0,9.3e-05,3]
[348384098,1736493032348,-150.0,9.309e-05,2]
[348384100,1736493032357,-175.71,9.32e-05,2]
[348384102,1736493032366,-150.0,9.324e-05,2]
[348384104,1736493032375,-150.0,9.338e-05,2]
[348384106,1736493032384,-808.44,9.341e-05,2]
[348384108,1736493032393,-437.86,9.341e-05,2]
[348384110,1736493032402,-437.86,9.341e-05,2]
[348384112,1736493032411,-437.86,9.341e-05,2]
[348384114,1736493032421,-621.03,9.341e-05,2]
[348384116,1736493032430,-150.0,9.353e-05,2]
[348384118,1736493032439,-150.0,9.368e-05,2]
[348384120,1736493032448,-150.0,9.382e-05,2]
[348384122,1736493032457,-150.0,9.397e-05,2]
[348384124,1736493032466,-300.27513339,9.4e-05,3]
[348384157,1736493033053,-469.1440006,9.4e-05,3]
[348384158,1736493033070,-958.76561608,9.4e-05,3]
[348384159,1736493037603,-486.92703397,9.4e-05,3]
[348384160,1736493037653,-84.88821596,9.4e-05,3]
[348384161,1736493037662,-150.0,9.412e-05,2]
[348384162,1736493037672,-150.0,9.426e-05,2]
[348384163,1736493037683,-150.0,9.441e-05,2]
[348384164,1736493037692,-150.0,9.456e-05,2]
[348384165,1736493037701,-150.0,9.471e-05,2]
[348384166,1736493037711,-150.0,9.478e-05,2]
[348384167,1736493037720,-150.0,9.478e-05,2]
[348384168,1736493037730,-150.0,9.485e-05,2]
[348384169,1736493037739,-156.322,9.5e-05,2]
[348384170,1736493037748,-45.36438464,9.5e-05,2]
[348384171,1736493037760,-104.63561536,9.5e-05,2]
[348384172,1736493037769,-3500.0,9.5e-05,3]
[348384173,1736493037779,-150.0,9.515e-05,2]
[348384174,1736493037790,-150.0,9.529e-05,2]
[348384175,1736493037804,-150.0,9.544e-05,2]
[348384176,1736493037813,-150.0,9.559e-05,2]
[348384177,1736493037822,-150.0,9.574e-05,2]
[348384178,1736493037832,-150.0,9.588e-05,2]
[348384179,1736493037842,-4700.0,9.6e-05,3]
[348384180,1736493037852,-150.0,9.603e-05,2]
[348384181,1736493037862,-150.0,9.618e-05,2]
[348384182,1736493037871,-150.0,9.632e-05,2]
[348384183,1736493037881,-150.0,9.647e-05,2]
[348384184,1736493037891,-150.0,9.662e-05,2]
[348384185,1736493037901,-150.0,9.676e-05,2]
[348384186,1736493037910,-150.0,9.691e-05,2]
[348384187,1736493037920,-5900.0,9.7e-05,3]
[348384188,1736493037930,-150.0,9.706e-05,2]
[348384189,1736493037939,-150.0,9.721e-05,2]
[348384190,1736493037949,-150.0,9.735e-05,2]
[348384191,1736493037958,-150.0,9.75e-05,2]
[348384192,1736493037968,-150.0,9.762e-05,2]
[348384193,1736493037977,-150.0,9.765e-05,2]
[348384194,1736493037986,-150.0,9.779e-05,2]
[348384195,1736493037996,-150.0,9.794e-05,2]
[348384196,1736493038005,-1100.0,9.8e-05,3]
[348384197,1736493038014,-150.0,9.809e-05,2]
[348384198,1736493038024,-150.0,9.824e-05,2]
[348384199,1736493038033,-150.0,9.838e-05,2]
[348384200,1736493038046,-150.0,9.853e-05,2]
[348384201,1736493038055,-150.0,9.868e-05,2]
[348384202,1736493038065,-150.0,9.882e-05,2]
[348384203,1736493038074,-150.0,9.897e-05,2]
[348384204,1736493038084,-500.0,9.898e-05,2]
[348384205,1736493038093,-3612.7111,9.898e-05,2]
[348384206,1736493038103,-725.16215357,9.9e-05,2]
[348384207,1736493038122,-1408.50534643,9.9e-05,2]
[348384208,1736493038131,-1100.0,9.9e-05,3]
[348384209,1736493038141,-150.0,9.912e-05,2]